Workbook

Sheet SMDR
A1: SMDR - Allocation Model
C3: 2006 | D3: 2007 | E3: 2008 | F3: 2009 | G3: 2010 | H3: 2011 | J3: Total 2009 to 2011 | K3: Explanation Allocator | L3: ID and Factors | M3: Total | N3: =IF('[1]I2 LDC class'!$D$20="",'[1]I2 LDC class'!$C$20,'[1]I2 LDC class'!$D$20) -> Residential | O3: =IF('[1]I2 LDC class'!$D$21="",'[1]I2 LDC class'!$C$21,'[1]I2 LDC class'!$D$21) -> General Service Less than 50 kW
B4: Revenue Requirement for the Historical Years | C4: ='[2]5. SM_Rev_Reqt'!$G$70 -> 14505.52939 | D4: ='[2]5. SM_Rev_Reqt'!$I$70 -> 11916.19807 | E4: ='[2]5. SM_Rev_Reqt'!$K$70 -> 15123.48676 | F4: ='[2]5. SM_Rev_Reqt'!$M$70 -> 43438.04269 | G4: ='[2]5. SM_Rev_Reqt'!$O$70 -> 119872.5584 | H4: ='[2]5. SM_Rev_Reqt'!$Q$70 -> 354986.3161 | J4: =SUM(C4:H4) -> 559842.1315
B6: Total Return on Capital | C6: ='[2]5. SM_Rev_Reqt'!$G$47 -> 163.579125 | D6: ='[2]5. SM_Rev_Reqt'!$I$47 -> 134.3791875 | E6: ='[2]5. SM_Rev_Reqt'!$K$47 -> 168.5713095 | F6: ='[2]5. SM_Rev_Reqt'!$M$47 -> 790.7495846 | G6: ='[2]5. SM_Rev_Reqt'!$O$47 -> 44572.43472 | H6: ='[2]5. SM_Rev_Reqt'!$Q$47 -> 92965.45504 | J6: =SUM(C6:H6) -> 138795.169 | K6: Weighted Meter Capital | L6: ='[1]E2 Allocators'!B93 -> CWMC | M6: =SUM(N6:O6) -> 1 | N6: 0.65 | O6: 0.35
J7: Allocated per Class | M7: 138795.169 | N7: =N6*$J$6 -> 90216.85983 | O7: =O6*$J$6 -> 48578.30914
B8: Amortization and interest Expense | C8: ='[2]5. SM_Rev_Reqt'!$G$58 -> 0 | D8: ='[2]5. SM_Rev_Reqt'!$I$58 -> 0 | E8: ='[2]5. SM_Rev_Reqt'!$K$58 -> 0 | F8: ='[2]5. SM_Rev_Reqt'!$M$58 -> 294.2333333 | G8: ='[2]5. SM_Rev_Reqt'!$O$58 -> 47349.36667 | H8: ='[2]5. SM_Rev_Reqt'!$Q$58 -> 112542.7 | J8: =SUM(C8:H8) -> 160186.3 | K8: Weighted Meter Capital | L8: =L6 -> CWMC | M8: 1 | N8: =N6 -> 0.65 | O8: =O6 -> 0.35
J9: Allocated per Class | M9: 160186.3 | N9: =$J$8*N8 -> 104121.095 | O9: =$J$8*O8 -> 56065.205
B10: Operating Expenses | C10: ='[2]5. SM_Rev_Reqt'!$G$50 -> 14302 | D10: ='[2]5. SM_Rev_Reqt'!$I$50 -> 11749 | E10: ='[2]5. SM_Rev_Reqt'!$K$50 -> 14916 | F10: ='[2]5. SM_Rev_Reqt'!$M$50 -> 42406 | G10: ='[2]5. SM_Rev_Reqt'!$O$50 -> 34514 | H10: ='[2]5. SM_Rev_Reqt'!$Q$50 -> 156773 | J10: =SUM(C10:H10) -> 274660 | K10: Number of Smart Meters Installed for each Class | M10: 9612 | N10: 7986 | O10: 1626
J11: Allocated per Class | M11: 274660 | N11: =$J$10/$M$10*N10 -> 228197.5406 | O11: =$J$10/$M$10*O10 -> 46462.45943
B12: Grossed-up Taxes/PILs | C12: ='[2]5. SM_Rev_Reqt'!$G$68 -> 39.95026007 | D12: ='[2]5. SM_Rev_Reqt'!$I$68 -> 32.81887887 | E12: ='[2]5. SM_Rev_Reqt'!$K$68 -> 38.91545281 | F12: ='[2]5. SM_Rev_Reqt'!$M$68 -> -52.9402317 | G12: ='[2]5. SM_Rev_Reqt'!$O$68 -> -6563.24296 | H12: ='[2]5. SM_Rev_Reqt'!$Q$68 -> -7294.838909 | J12: =SUM(C12:H12) -> -13799.33751 | K12: Revenue Requirement allocated to each Class before PILs | M12: 573641.469 | N12: =N7+N9+N11 -> 422535.4954 | O12: =O7+O9+O11 -> 151105.9736
J13: Allocated per Class | M13: -13799.33751 | N13: =$J$12/$M$12*N12 -> -10164.38006 | O13: =$J$12/$M$12*O12 -> -3634.957446
M14: Total | N14: =IF('[1]I2 LDC class'!$D$20="",'[1]I2 LDC class'!$C$20,'[1]I2 LDC class'!$D$20) -> Residential | O14: =IF('[1]I2 LDC class'!$D$21="",'[1]I2 LDC class'!$C$21,'[1]I2 LDC class'!$D$21) -> General Service Less than 50 kW
B15: TOTAL REVENUE REQUIREMENT | J15: =J6+J8+J10+J12 -> 559842.1315 | M15: =+M7+M9+M11+M13 -> 559842.1315 | N15: =+N7+N9+N11+N13 -> 412371.1153 | O15: =+O7+O9+O11+O13 -> 147471.0161
J16: Percentage of costs allocated to customer classes | M16: =SUM(N16:O16) -> 1 | N16: =N15/M15 -> 0.7365846409 | O16: =O15/M15 -> 0.2634153591
B17: Revenue Generated from Smart Meter Funding Adder | J17: 393371
B18: Net Deferred Revenue Requirement | J18: =J15-J17 -> 166471.1315
I19: SMIRR Revenue Shortfall | J19: 147112.56
I20: Total Revenue Requirement | J20: =J18+J19 -> 313583.6915
J21: Allocated per Class | N21: =$J$20*N16 -> 230980.9308 | O21: =$J$20*O16 -> 82602.76071
J22: Number of Metered Customers | N22: 7986 | O22: 1626
I23: Smart Meter Disposition Rate Rider | N23: =N21/N22/12 -> 2.410269333 | O23: =O21/O22/12 -> 4.23343382

Sheet SMIRR
A1: SMIRR - Allocation Model
C3: 2012 | E3: Total 2012 | F3: Explanation Allocator | G3: ID and Factors | H3: Total | I3: =IF('[1]I2 LDC class'!$D$20="",'[1]I2 LDC class'!$C$20,'[1]I2 LDC class'!$D$20) -> Residential | J3: =IF('[1]I2 LDC class'!$D$21="",'[1]I2 LDC class'!$C$21,'[1]I2 LDC class'!$D$21) -> General Service Less than 50 kW
B4: Revenue Requirement for the Forecast Year | C4: ='[2]5. SM_Rev_Reqt'!$S$70 -> 252288.5075 | E4: =SUM(C4:C4) -> 252288.5075
B6: Total Return on Capital | C6: ='[2]5. SM_Rev_Reqt'!$S$47 -> 97838.11417 | E6: =SUM(C6:C6) -> 97838.11417 | F6: Weighted Meter Capital | G6: ='[1]E2 Allocators'!B93 -> CWMC | H6: =SUM(I6:J6) -> 1 | I6: 0.65 | J6: 0.35
E7: Allocated per Class | H7: 97838.11417 | I7: =I6*$E$6 -> 63594.77421 | J7: =J6*$E$6 -> 34243.33996
B8: Amortization and interest Expense | C8: ='[2]5. SM_Rev_Reqt'!$S$58 -> 132934.6333 | E8: =SUM(C8:C8) -> 132934.6333 | F8: Weighted Meter Capital | G8: =G6 -> CWMC | H8: 1 | I8: =I6 -> 0.65 | J8: =J6 -> 0.35
E9: Allocated per Class | H9: 132934.6333 | I9: =$E$8*I8 -> 86407.51167 | J9: =$E$8*J8 -> 46527.12167
B10: Operating Expenses | C10: ='[2]5. SM_Rev_Reqt'!$S$50 -> 20945 | E10: =SUM(C10:C10) -> 20945 | F10: Number of Smart Meters Installed for each Class | H10: =I10+J10 -> 9612 | I10: 7986 | J10: 1626
E11: Allocated per Class | H11: 20945 | I11: =$E$10/$H$10*I10 -> 17401.86954 | J11: =$E$10/$H$10*J10 -> 3543.130462
B12: Grossed-up Taxes/PILs | C12: ='[2]5. SM_Rev_Reqt'!$S$68 -> 570.7599711 | E12: =SUM(C12:C12) -> 570.7599711 | F12: Revenue Requirement allocated to each Class before PILs | H12: 251717.7475 | I12: =I7+I9+I11 -> 167404.1554 | J12: =J7+J9+J11 -> 84313.59209
E13: Allocated per Class | H13: 570.7599711 | I13: =$E$12/$H$12*I12 -> 379.5822577 | J13: =$E$12/$H$12*J12 -> 191.1777134
H14: Total | I14: =IF('[1]I2 LDC class'!$D$20="",'[1]I2 LDC class'!$C$20,'[1]I2 LDC class'!$D$20) -> Residential | J14: =IF('[1]I2 LDC class'!$D$21="",'[1]I2 LDC class'!$C$21,'[1]I2 LDC class'!$D$21) -> General Service Less than 50 kW
B15: TOTAL FORECAST REVENUE REQUIREMENT | E15: =E6+E8+E10+E12 -> 252288.5075 | H15: =+H7+H9+H11+H13 -> 252288.5075 | I15: =+I7+I9+I11+I13 -> 167783.7377 | J15: =+J7+J9+J11+J13 -> 84504.7698
E16: Percentage of costs allocated to customer classes | H16: =SUM(I16:J16) -> 1 | I16: =I15/H15 -> 0.6650470897 | J16: =J15/H15 -> 0.3349529103
E17: Allocated per Class | I17: =+I15 -> 167783.7377 | J17: =+J15 -> 84504.7698
E18: Number of Metered Customers | I18: =SMDR!N22 -> 7986 | J18: =SMDR!O22 -> 1626
D19: Smart Meter Disposition Rate Rider | I19: =I17/I18/12 -> 1.750811187 | J19: =J17/J18/12 -> 4.330912761

Sheet Weighted Average Calculations (hidden)
A1: Weighted Average Calculations
A3: Residential Meters
C4: Avg. Meter Cost | D4: Avg. Install Cost | E4: Number of Meters | F4: Total Cost | G4: Allocation
B5: Sensus | C5: 70 | D5: 10 | E5: 7986 | F5: =E5*(C5+D5) -> 638880 | G5: =F5/F14 -> 0.6487210991
A8: GS < 50 kW
B9: Sensus | C9: 70 | D9: 50 | E9: 1276 | F9: =E9*(C9+D9) -> 153120
B10: Elster | C10: 480 | D10: 50 | E10: 331 | F10: =E10*(C10+D10) -> 175430
B11: GE | C11: 550 | D11: 50 | E11: 29 | F11: =E11*(C11+D11) -> 17400
B12: Sub Total | F12: =F9+F10+F11 -> 345950 | G12: =F12/F14 -> 0.3512789009
B14: Grand Total | F14: =F12+F5 -> 984830
